fUSD/lending_fUSD_20250716
["ID","MTS","AMOUNT","RATE_DAILY","PERIOD"]
[372605897,1752701468402,-573.76,0.00019945,2]
[372605898,1752701468412,-1279.49,0.00019945,2]
[372605899,1752701468421,-460.0,0.00019945,2]
[372605900,1752701468430,-327.879735,0.00019945,2]
[372605901,1752701468439,-327.879735,0.00019945,2]
[372605902,1752701468448,-460.0,0.00019945,2]
[372605903,1752701468457,-2662.18,0.00019945,2]
[372605904,1752701468466,-423.1495854,0.00019945,2]
[372605905,1752701468476,-327.879735,0.00019945,2]
[372605906,1752701468485,-491.84377507,0.00019945,2]
[372605907,1752701468493,-327.879735,0.00019945,2]
[372605908,1752701468502,-858.13,0.00019945,2]
[372605909,1752701468512,-460.0,0.00019945,2]
[372605910,1752701468521,-714.65,0.00019945,2]
[372605911,1752701468530,-1356.56,0.00019945,2]
[372605912,1752701468540,-460.0,0.00019945,2]
[372605913,1752701468550,-460.0,0.00019945,2]
[372605914,1752701468560,-534.18,0.00019945,2]
[372605915,1752701468569,-460.0,0.00019945,2]
[372605916,1752701468578,-460.0,0.00019945,2]
[372605917,1752701468587,-151.0,0.00019945,2]
[372605918,1752701468596,-1090.04,0.00019945,2]
[372605919,1752701468605,-161.889984,0.00019945,2]
[372605920,1752701468614,-1189.19,0.00019945,2]
[372605921,1752701468623,-151.0,0.00019945,2]
[372605922,1752701468632,-151.0,0.00019945,2]
[372605923,1752701468641,-268.1821831,0.00019945,2]
[372605924,1752701468650,-460.0,0.00019945,2]
[372605925,1752701468660,-460.0,0.00019945,2]
[372605926,1752701468669,-859.32,0.00019945,2]
[372605927,1752701468679,-151.0,0.00019945,2]
[372605928,1752701468689,-169.778208,0.00019945,2]
[372605929,1752701468698,-460.0,0.00019945,2]
[372605930,1752701468707,-460.0,0.00019945,2]
[372605931,1752701468717,-460.0,0.00019945,2]
[372605932,1752701468727,-462.71708981,0.00019945,2]
[372605933,1752701468736,-460.0,0.00019945,2]
[372605934,1752701468746,-269.39750037,0.00019945,2]
[372605935,1752701468755,-1083.39,0.00019945,2]
[372605936,1752701468764,-684.49,0.00019945,2]
[372605937,1752701468774,-344.21,0.00019945,2]
[372605938,1752701468783,-460.0,0.00019945,2]
[372605939,1752701468792,-460.0,0.00019945,2]
[372605940,1752701468803,-460.0,0.00019945,2]
[372605941,1752701468814,-1238.63,0.00019945,2]
[372605942,1752701468823,-730.8,0.00019945,2]
[372605943,1752701468832,-903.74,0.00019945,2]
[372605944,1752701468843,-463.48379195,0.00019945,2]
[372605945,1752701468852,-1136.54,0.00019945,2]
[372605946,1752701468862,-460.0,0.00019945,2]
[372605947,1752701468872,-725.78,0.00019945,2]
[372605948,1752701468883,-460.0,0.00019945,2]
[372605949,1752701468894,-557.61,0.00019945,2]
[372605950,1752701468907,-606.23,0.00019945,2]
[372605951,1752701468916,-460.0,0.00019945,2]
[372605952,1752701468926,-460.0,0.00019945,2]
[372605953,1752701468935,-460.0,0.00019945,2]
[372605954,1752701468946,-460.0,0.00019945,2]
[372605955,1752701468955,-507.69,0.00019945,2]
[372605956,1752701468966,-660.69,0.00019945,2]
[372605957,1752701468975,-460.0,0.00019945,2]
[372605958,1752701468985,-151.0,0.00019945,2]
[372605959,1752701468995,-151.0,0.00019945,2]
[372605960,1752701469004,-460.0,0.00019945,2]
[372605961,1752701469013,-460.0,0.00019945,2]
[372605962,1752701469023,-151.0,0.00019945,2]
[372605963,1752701469034,-208.387088,0.00019945,2]
[372605964,1752701469043,-1202.07,0.00019945,2]
[372605965,1752701469053,-483.16,0.00019945,2]
[372605966,1752701469063,-2488.63,0.00019945,2]
[372605967,1752701469072,-1322.13,0.00019945,2]
[372605968,1752701469081,-1545.82,0.00019945,2]
[372605969,1752701469090,-460.0,0.00019945,2]
[372605970,1752701469100,-1603.2,0.00019945,2]
[372605971,1752701469109,-460.0,0.00019945,2]
[372605972,1752701469119,-460.0,0.00019945,2]
[372605973,1752701469128,-460.0,0.00019945,2]
[372605974,1752701469137,-460.0,0.00019945,2]
[372605975,1752701469147,-3871.15,0.00019945,2]
[372605976,1752701469156,-565.58,0.00019945,2]
[372605977,1752701469166,-266.50661663,0.00019945,2]
[372605978,1752701469177,-1082.01,0.00019945,2]
[372605979,1752701469187,-460.0,0.00019945,2]
[372605980,1752701469197,-460.0,0.00019945,2]
[372605981,1752701469206,-460.0,0.00019945,2]
[372605982,1752701469216,-460.0,0.00019945,2]
[372605983,1752701469226,-460.0,0.00019945,2]
[372605984,1752701469235,-460.0,0.00019945,2]
[372605985,1752701469245,-957.2,0.00019945,2]
[372605986,1752701469254,-460.0,0.00019945,2]
[372605987,1752701469265,-567.07,0.00019945,2]
[372605988,1752701469275,-460.0,0.00019945,2]
[372605989,1752701469286,-460.0,0.00019945,2]
[372605990,1752701469297,-460.0,0.00019945,2]
[372605991,1752701469307,-460.0,0.00019945,2]
[372605992,1752701469316,-514.84529873,0.00019945,2]
[372605993,1752701469326,-460.0,0.00019945,2]
[372605994,1752701469336,-460.0,0.00019945,2]
[372605995,1752701469345,-481.07,0.00019945,2]
[372605996,1752701469355,-607.91,0.00019945,2]
[372605997,1752701469364,-1750.13,0.00019945,2]
[372605998,1752701469374,-717.25,0.00019945,2]
[372605999,1752701469383,-460.0,0.00019945,2]
[372606000,1752701469392,-456.5713412,0.00019945,2]
[372606001,1752701469402,-460.0,0.00019945,2]
[372606002,1752701469411,-460.0,0.00019945,2]
[372606003,1752701469422,-460.0,0.00019945,2]
[372606004,1752701469433,-663.19,0.00019945,2]
[372606005,1752701469442,-1158.61,0.00019945,2]
[372606006,1752701469452,-460.0,0.00019945,2]
[372606007,1752701469464,-896.34,0.00019945,2]
[372606008,1752701469484,-460.0,0.00019945,2]
[372606009,1752701469505,-460.0,0.00019945,2]
[372606010,1752701469522,-460.0,0.00019945,2]
[372606011,1752701469532,-460.0,0.00019945,2]
[372606012,1752701469542,-1494.11,0.00019945,2]
[372606013,1752701469553,-460.0,0.00019945,2]
[372606014,1752701469563,-151.0,0.00019945,2]
[372606015,1752701469572,-151.0,0.00019945,2]
[372606016,1752701469583,-460.0,0.00019945,2]
[372606017,1752701469593,-1141.57,0.00019945,2]
[372606018,1752701469602,-559.93,0.00019945,2]
[372606019,1752701469612,-460.0,0.00019945,2]
[372606020,1752701469621,-846.71,0.00019945,2]
[372606021,1752701469630,-779.72967,0.00019945,2]
[372606022,1752701469639,-779.72967,0.00019945,2]
[372606023,1752701469649,-460.0,0.00019945,2]
[372606024,1752701469658,-577.99159681,0.00019945,2]
[372606025,1752701469668,-460.0,0.00019945,2]
[372606026,1752701469678,-460.0,0.00019945,2]
[372606027,1752701469687,-460.0,0.00019945,2]
[372606028,1752701469697,-535.33,0.00019945,2]
[372606029,1752701469707,-779.72967,0.00019945,2]
[372606030,1752701469717,-779.729678,0.00019945,2]
[372606031,1752701469726,-749.96,0.00019945,2]
[372606032,1752701469735,-460.0,0.00019945,2]
[372606033,1752701469747,-467.28120235,0.00019945,2]
[372606034,1752701469756,-623.4,0.00019945,2]
[372606035,1752701469767,-545.27,0.00019945,2]
[372606036,1752701469777,-460.0,0.00019945,2]
[372606037,1752701469787,-566.84,0.00019945,2]
[372606038,1752701469797,-595.06,0.00019945,2]
[372606039,1752701469810,-151.0,0.00019945,2]
[372606040,1752701469819,-460.0,0.00019945,2]
[372606041,1752701469829,-825.37,0.00019945,2]
[372606042,1752701469839,-151.0,0.00019945,2]
[372606043,1752701469849,-461.98215683,0.00019945,2]
[372606044,1752701469859,-400.4927758,0.00019945,2]
[372606045,1752701469871,-955.78,0.00019945,2]
[372606046,1752701469881,-560.77,0.00019945,2]
[372606047,1752701469894,-461.33818166,0.00019945,2]
[372606048,1752701469904,-460.0,0.00019945,2]
[372606049,1752701469914,-460.0,0.00019945,2]
[372606050,1752701469924,-460.0,0.00019945,2]
[372606051,1752701469933,-465.31,0.00019945,2]
[372606052,1752701469943,-164.772086,0.00019945,2]
[372606053,1752701469952,-164.772086,0.00019945,2]
[372606054,1752701469962,-598.42,0.00019945,2]
[372606055,1752701469972,-469.25,0.00019945,2]
[372606056,1752701469982,-2364.27,0.00019945,2]
[372606057,1752701469991,-648.97,0.00019945,2]
[372606058,1752701470001,-164.772086,0.00019945,2]
[372606059,1752701470011,-164.772084,0.00019945,2]
[372606060,1752701470021,-460.0,0.00019945,2]
[372606061,1752701470030,-460.0,0.00019945,2]
[372606062,1752701470039,-460.0,0.00019945,2]
[372606063,1752701470051,-460.0,0.00019945,2]
[372606064,1752701470272,-5300.92,0.00019945,2]
[372606065,1752701470282,-518.6,0.00019945,2]
[372606066,1752701470291,-460.0,0.00019945,2]
[372606067,1752701470304,-12216.61,0.00019945,2]
[372606068,1752701470315,-1580.96,0.00019945,2]
[372606069,1752701470325,-1797.59,0.00019945,2]
[372606070,1752701470334,-460.0,0.00019945,2]
[372606071,1752701470343,-1064.09,0.00019945,2]
[372606072,1752701470353,-1925.13,0.00019945,2]
[372606073,1752701470362,-460.0,0.00019945,2]
[372606074,1752701470461,-779.38,0.00019945,2]
[372606075,1752701470504,-2646.02,0.00019945,2]
[372606076,1752701470515,-2581.69,0.00019945,2]
[372606077,1752701470524,-460.0,0.00019945,2]
[372606078,1752701470534,-651.85,0.00019945,2]
[372606079,1752701470544,-2384.45,0.00019945,2]
[372606080,1752701470555,-460.0,0.00019945,2]
[372606081,1752701470565,-4301.81,0.00019945,2]
[372606082,1752701470575,-553.92,0.00019945,2]
[372606083,1752701470584,-460.0,0.00019945,2]
[372606084,1752701470594,-460.0,0.00019945,2]
[372606085,1752701470603,-853.89,0.00019945,2]
[372606086,1752701470614,-1231.35,0.00019945,2]
[372606087,1752701470624,-1820.7,0.00019945,2]
[372606088,1752701470633,-464.48390907,0.00019945,2]
[372606089,1752701470643,-4637.92,0.00019945,2]
[372606090,1752701470653,-460.0,0.00019945,2]
[372606091,1752701470662,-460.0,0.00019945,2]
[372606092,1752701470672,-460.0,0.00019945,2]
[372606093,1752701470681,-460.0,0.00019945,2]
[372606094,1752701470691,-866.07,0.00019945,2]
[372606095,1752701470701,-923.21,0.00019945,2]
[372606096,1752701470710,-460.0,0.00019945,2]
[372606097,1752701470720,-460.0,0.00019945,2]
[372606098,1752701470729,-4314.25,0.00019945,2]
[372606099,1752701470738,-10369.94,0.00019945,2]
[372606100,1752701470748,-1730.34,0.00019945,2]
[372606101,1752701470758,-460.0,0.00019945,2]
[372606102,1752701470769,-1254.62,0.00019945,2]
[372606103,1752701470779,-1528.27,0.00019945,2]
[372606104,1752701470788,-467.49,0.00019945,2]
[372606105,1752701470799,-2175.977186,0.00019945,2]
[372606106,1752701470809,-1839.67,0.00019945,2]
[372606107,1752701470821,-460.0,0.00019945,2]
[372606108,1752701470831,-2282.70317,0.00019945,2]
[372606109,1752701470841,-460.0,0.00019945,2]
[372606110,1752701470851,-460.0,0.00019945,2]
[372606111,1752701470863,-635.66,0.00019945,2]
[372606112,1752701470873,-460.0,0.00019945,2]
[372606113,1752701470883,-2125.23,0.00019945,2]
[372606114,1752701470894,-7381.96,0.00019945,2]
[372606115,1752701470905,-460.0,0.00019945,2]
[372606116,1752701470915,-460.0,0.00019945,2]
[372606117,1752701470925,-3223.85,0.00019945,2]
[372606118,1752701470935,-460.0,0.00019945,2]
[372606119,1752701470945,-2308.06714,0.00019945,2]
[372606120,1752701470955,-1696.14,0.00019945,2]
[372606121,1752701470964,-9434.42,0.00019945,2]
[372606122,1752701470974,-665.66,0.00019945,2]
[372606123,1752701470984,-550.09,0.00019945,2]
[372606124,1752701470993,-4032.62,0.00019945,2]
[372606125,1752701471003,-1181.48,0.00019945,2]
[372606126,1752701471012,-16146.04,0.00019945,2]
[372606127,1752701471022,-540.78,0.00019945,2]
[372606128,1752701471032,-460.0,0.00019945,2]
[372606129,1752701471042,-571.13,0.00019945,2]
[372606130,1752701471055,-460.0,0.00019945,2]
[372606131,1752701471064,-460.0,0.00019945,2]
[372606132,1752701471074,-2354.03,0.00019945,2]
[372606133,1752701471083,-460.0,0.00019945,2]
[372606134,1752701471093,-1733.27,0.00019945,2]
[372606135,1752701471103,-1739.94,0.00019945,2]
[372606136,1752701471113,-627.26,0.00019945,2]
[372606137,1752701471126,-461.97894782,0.00019945,2]
[372606138,1752701471136,-3666.31,0.00019945,2]
[372606139,1752701471146,-648.68,0.00019945,2]
[372606140,1752701471156,-492.12,0.00019945,2]
[372606141,1752701471165,-3047.62,0.00019945,2]
[372606142,1752701471176,-460.0,0.00019945,2]
[372606143,1752701471186,-3387.43,0.00019945,2]
[372606144,1752701471197,-460.0,0.00019945,2]
[372606145,1752701471207,-1795.77,0.00019945,2]
[372606146,1752701471217,-501.61,0.00019945,2]
[372606147,1752701471227,-3873.59,0.00019945,2]
[372606148,1752701471238,-762.45,0.00019945,2]
[372606149,1752701471247,-1315.48,0.00019945,2]
[372606150,1752701471258,-841.0,0.00019945,2]
[372606151,1752701471271,-460.0,0.00019945,2]
[372606152,1752701471282,-2062.09,0.00019945,2]
[372606153,1752701471292,-6966.21,0.00019945,2]
[372606154,1752701471303,-981.25,0.00019945,2]
[372606155,1752701471312,-1454.86,0.00019945,2]
[372606156,1752701471322,-5263.26,0.00019945,2]
[372606157,1752701471332,-7600.02,0.00019945,2]
[372606158,1752701471342,-753.42,0.00019945,2]
[372606159,1752701471353,-607.19,0.00019945,2]
[372606160,1752701471363,-460.0,0.00019945,2]
[372606161,1752701471375,-2018.79,0.00019945,2]
[372606162,1752701471384,-828.6,0.00019945,2]
[372606163,1752701471394,-460.0,0.00019945,2]
[372606164,1752701471404,-460.0,0.00019945,2]
[372606165,1752701471413,-460.0,0.00019945,2]
[372606166,1752701471423,-460.0,0.00019945,2]
[372606167,1752701471432,-460.0,0.00019945,2]
[372606168,1752701471442,-460.0,0.00019945,2]
[372606169,1752701471451,-2136.02,0.00019945,2]
[372606170,1752701471462,-1909.85,0.00019945,2]
[372606171,1752701471471,-10275.29,0.00019945,2]
[372606172,1752701471482,-7368.69,0.00019945,2]
[372606173,1752701471491,-3924.62,0.00019945,2]
[372606174,1752701471501,-460.0,0.00019945,2]
[372606175,1752701471511,-583.93,0.00019945,2]
[372606176,1752701471521,-829.91,0.00019945,2]
[372606177,1752701471531,-460.0,0.00019945,2]
[372606178,1752701471540,-2272.03,0.00019945,2]
[372606179,1752701471551,-1883.16,0.00019945,2]
[372606180,1752701471560,-640.53,0.00019945,2]
[372606181,1752701471570,-684.58,0.00019945,2]
[372606182,1752701471581,-2616.93,0.00019945,2]
[372606183,1752701471590,-527.71,0.00019945,2]
[372606184,1752701471600,-460.0,0.00019945,2]
[372606185,1752701471610,-2482.2,0.00019945,2]
[372606186,1752701471619,-460.0,0.00019945,2]
[372606187,1752701471629,-1625.58,0.00019945,2]
[372606188,1752701471639,-2428.54,0.00019945,2]
[372606189,1752701471649,-460.0,0.00019945,2]
[372606190,1752701471660,-540.0631772,0.00019945,2]
[372606191,1752701471669,-1316.17,0.00019945,2]
[372606192,1752701471679,-460.0,0.00019945,2]
[372606193,1752701471689,-2095.16,0.00019945,2]
[372606194,1752701471699,-2694.74,0.00019945,2]
[372606195,1752701471708,-460.0,0.00019945,2]
[372606196,1752701471718,-517.7,0.00019945,2]
[372606197,1752701471727,-8724.55,0.00019945,2]
[372606198,1752701471737,-1137.82,0.00019945,2]
[372606199,1752701471747,-682.54,0.00019945,2]
[372606200,1752701471756,-541.93693452,0.00019945,2]
[372606201,1752701471766,-1463.71,0.00019945,2]
[372606202,1752701471776,-460.0,0.00019945,2]
[372606203,1752701471786,-1067.98,0.00019945,2]
[372606204,1752701471796,-2609.1,0.00019945,2]
[372606205,1752701471810,-2327.49,0.00019945,2]
[372606206,1752701471820,-3513.45,0.00019945,2]
[372606207,1752701471830,-4730.05,0.00019945,2]
[372606208,1752701471840,-1070.32,0.00019945,2]
[372606209,1752701471851,-7090.22,0.00019945,2]
[372606210,1752701471864,-460.0,0.00019945,2]
[372606211,1752701471877,-10449.4,0.00019945,2]
[372606212,1752701471886,-460.0,0.00019945,2]
[372606213,1752701471896,-869.37,0.00019945,2]
[372606214,1752701471906,-668.64,0.00019945,2]
[372606215,1752701471916,-460.0,0.00019945,2]
[372606216,1752701471925,-460.0,0.00019945,2]
[372606217,1752701471935,-1566.93,0.00019945,2]
[372606218,1752701471945,-947.82,0.00019945,2]
[372606219,1752701471955,-460.0,0.00019945,2]
[372606220,1752701471967,-1597.81,0.00019945,2]
[372606221,1752701471976,-461.48885521,0.00019945,2]
[372606222,1752701471987,-1854.38,0.00019945,2]
[372606223,1752701471999,-2410.39,0.00019945,2]
[372606224,1752701472009,-3056.43,0.00019945,2]
[372606225,1752701472019,-2322.04,0.00019945,2]
[372606226,1752701472031,-497.65337333,0.00019945,2]
[372606227,1752701472045,-2125.35,0.00019945,2]
[372606228,1752701472060,-2320.48,0.00019945,2]
[372606229,1752701472070,-460.0,0.00019945,2]
[372606230,1752701472080,-460.0,0.00019945,2]
[372606231,1752701472090,-460.0,0.00019945,2]
[372606232,1752701472100,-1361.79,0.00019945,2]
[372606233,1752701472111,-460.0,0.00019945,2]
[372606234,1752701472120,-782.93,0.00019945,2]
[372606235,1752701472131,-2618.99,0.00019945,2]
[372606236,1752701472140,-460.0,0.00019945,2]
[372606237,1752701472151,-460.0,0.00019945,2]
[372606238,1752701472160,-571.73,0.00019945,2]
[372606239,1752701472171,-1580.94,0.00019945,2]
[372606240,1752701472180,-624.96,0.00019945,2]
[372606241,1752701472190,-637.52,0.00019945,2]
[372606242,1752701472203,-959.98,0.00019945,2]
[372606243,1752701472214,-347.07489792,0.00019945,2]
[372606244,1752701472223,-1103.41,0.00019945,2]
[372606245,1752701472234,-460.0,0.00019945,2]
[372606246,1752701472243,-1737.5,0.00019945,2]
[372606247,1752701472252,-460.0,0.00019945,2]
[372606248,1752701472262,-2429.89,0.00019945,2]
[372606249,1752701472272,-151.0,0.00019945,2]
[372606250,1752701472281,-151.0,0.00019945,2]
[372606251,1752701472291,-2664.01,0.00019945,2]
[372606252,1752701472300,-846.19,0.00019945,2]
[372606253,1752701472310,-47591.38,0.00019945,2]
[372606254,1752701472319,-2516.64,0.00019945,2]
[372606255,1752701472329,-460.0,0.00019945,2]
[372606256,1752701472339,-460.0,0.00019945,2]
[372606257,1752701472348,-791.81,0.00019945,2]
[372606258,1752701472358,-631.97,0.00019945,2]
[372606259,1752701472368,-1402.85,0.00019945,2]
[372606260,1752701472378,-1034.84,0.00019945,2]
[372606261,1752701472388,-6462.52,0.00019945,2]
[372606262,1752701472398,-460.0,0.00019945,2]
[372606263,1752701472408,-510.64,0.00019945,2]
[372606264,1752701472418,-1356.52,0.00019945,2]
[372606265,1752701472427,-503.79170895,0.00019945,2]
[372606266,1752701472436,-1146.7,0.00019945,2]
[372606267,1752701472446,-4707.54,0.00019945,2]
[372606268,1752701472455,-812.28,0.00019945,2]
[372606269,1752701472465,-460.0,0.00019945,2]
[372606270,1752701472474,-1536.58,0.00019945,2]
[372606271,1752701472483,-460.0,0.00019945,2]
[372606272,1752701472493,-846.04,0.00019945,2]
[372606273,1752701472503,-686.06,0.00019945,2]
[372606274,1752701472512,-1636.21,0.00019945,2]
[372606275,1752701472522,-4613.32,0.00019945,2]
[372606276,1752701472531,-460.0,0.00019945,2]
[372606277,1752701472541,-2050.28,0.00019945,2]
[372606278,1752701472551,-460.0,0.00019945,2]
[372606279,1752701472560,-460.0,0.00019945,2]
[372606280,1752701472570,-188.96503397,0.00019945,2]
[372606281,1752701472579,-460.0,0.00019945,2]
[372606282,1752701472589,-6981.27,0.00019945,2]
[372606283,1752701472599,-488.74,0.00019945,2]
[372606284,1752701472608,-792.08,0.00019945,2]
[372606285,1752701472618,-460.0,0.00019945,2]
[372606286,1752701472627,-2175.9,0.00019945,2]
[372606287,1752701472636,-460.0,0.00019945,2]
[372606288,1752701472646,-1562.74,0.00019945,2]
[372606289,1752701472655,-460.0,0.00019945,2]
[372606290,1752701472665,-909.26,0.00019945,2]
[372606291,1752701472674,-1593.12,0.00019945,2]
[372606292,1752701473014,-460.0,0.00019945,2]
[372606293,1752701473026,-460.0,0.00019945,2]
[372606294,1752701473036,-812.41,0.00019945,2]
[372606295,1752701473046,-460.0,0.00019945,2]
[372606296,1752701473058,-2316.61,0.00019945,2]
[372606297,1752701473068,-460.0,0.00019945,2]
[372606298,1752701473078,-7499.75,0.00019945,2]
[372606299,1752701473089,-1101.97,0.00019945,2]
[372606300,1752701473099,-1237.08,0.00019945,2]
[372606301,1752701473109,-735.18,0.00019945,2]
[372606302,1752701473120,-460.0,0.00019945,2]
[372606303,1752701473130,-460.0,0.00019945,2]
[372606304,1752701473142,-531.34,0.00019945,2]
[372606305,1752701473152,-460.0,0.00019945,2]
[372606306,1752701473162,-585.73,0.00019945,2]
[372606307,1752701473173,-728.02,0.00019945,2]
[372606308,1752701473184,-1356.94,0.00019945,2]
[372606309,1752701473194,-2357.38,0.00019945,2]
[372606310,1752701473204,-1759.05,0.00019945,2]
[372606311,1752701473215,-460.0,0.00019945,2]
[372606312,1752701473225,-460.0,0.00019945,2]
[372606313,1752701473235,-460.0,0.00019945,2]
[372606314,1752701473245,-3086.97,0.00019945,2]
[372606315,1752701473256,-1000.0,0.00019945,2]
[372606316,1752701473265,-2186.58,0.00019945,2]
[372606317,1752701473275,-888.9,0.00019945,2]
[372606318,1752701473285,-2401.27,0.00019945,2]
[372606319,1752701473295,-1049.9,0.00019945,2]
[372606320,1752701473306,-703.45,0.00019945,2]
[372606321,1752701473316,-1236.61,0.00019945,2]
[372606322,1752701473326,-500.37,0.00019945,2]
[372606323,1752701473336,-1229.87,0.00019945,2]
[372606324,1752701473346,-5177.79,0.00019945,2]
[372606325,1752701473356,-663.47,0.00019945,2]
[372606326,1752701473366,-1239.78,0.00019945,2]
[372606327,1752701473375,-4181.13,0.00019945,2]
[372606328,1752701473385,-1529.08,0.00019945,2]
[372606329,1752701473396,-752.31,0.00019945,2]
[372606330,1752701473405,-2479.89,0.00019945,2]
[372606331,1752701473415,-627.07,0.00019945,2]
[372606332,1752701473426,-1062.15,0.00019945,2]
[372606333,1752701473435,-743.42,0.00019945,2]
[372606334,1752701473448,-460.0,0.00019945,2]
[372606335,1752701473458,-1398.17,0.00019945,2]
[372606336,1752701473468,-1419.27,0.00019945,2]
[372606337,1752701473480,-5265.66,0.00019945,2]
[372606338,1752701473490,-1298.49,0.00019945,2]
[372606339,1752701473499,-2263.74,0.00019945,2]
[372606340,1752701473510,-460.0,0.00019945,2]
[372606341,1752701473519,-3549.02,0.00019945,2]
[372606342,1752701473530,-755.63,0.00019945,2]
[372606343,1752701473540,-460.0,0.00019945,2]
[372606344,1752701473552,-580.94,0.00019945,2]
[372606345,1752701473563,-1393.83,0.00019945,2]
[372606346,1752701473573,-2268.26,0.00019945,2]
[372606347,1752701473584,-3856.09,0.00019945,2]
[372606348,1752701473594,-1660.71,0.00019945,2]
[372606349,1752701473604,-2769.9,0.00019945,2]
[372606350,1752701473614,-701.5,0.00019945,2]
[372606351,1752701473624,-460.0,0.00019945,2]
[372606352,1752701473634,-2153.1,0.00019945,2]
[372606353,1752701473643,-646.92,0.00019945,2]
[372606354,1752701473654,-822.29,0.00019945,2]
[372606355,1752701473663,-2113.36,0.00019945,2]
[372606356,1752701473673,-2628.63,0.00019945,2]
[372606357,1752701473683,-4035.45,0.00019945,2]
[372606358,1752701473692,-511.53,0.00019945,2]
[372606359,1752701473702,-985.54,0.00019945,2]
[372606360,1752701473711,-1562.36,0.00019945,2]
[372606361,1752701473721,-460.0,0.00019945,2]
[372606362,1752701473732,-460.0,0.00019945,2]
[372606363,1752701473743,-168.0,0.00019946,2]
[372606364,1752701473755,-151.0,0.00019956,2]
[372606365,1752701473765,-194.264131,0.00019956,2]
[372606366,1752701473774,-151.0,0.00019962,2]
[372606367,1752701473784,-151.0,0.00019962,2]
[372606368,1752701473794,-151.0,0.00019962,2]
[372606369,1752701473808,-151.0,0.00019962,2]
[372606370,1752701473818,-151.0,0.00019962,2]
[372606371,1752701473828,-151.0,0.00019962,2]
[372606372,1752701473838,-151.0,0.00019962,2]
[372606373,1752701473849,-182.850985,0.00019962,2]
[372606374,1752701473859,-182.850985,0.00019962,2]
[372606375,1752701473868,-151.0,0.00019962,2]
[372606376,1752701473879,-275.58188284,0.00019963,2]
[372606377,1752701473891,-168.0,0.00019965,2]
[372606378,1752701473901,-1496.6,0.00019971,2]
[372606379,1752701473911,-1496.6,0.00019972,2]
[372606380,1752701473921,-1496.6,0.00019972,2]
[372606381,1752701473931,-500.0,0.00019972,2]
[372606382,1752701473941,-165.0,0.00019973,2]
[372606383,1752701473951,-500.0,0.00019973,2]
[372606384,1752701473961,-500.0,0.00019973,2]
[372606385,1752701473970,-500.0,0.00019973,2]
[372606386,1752701473980,-500.0,0.00019973,2]
[372606387,1752701473991,-500.0,0.00019973,2]
[372606388,1752701474000,-500.0,0.00019973,2]
[372606389,1752701474010,-500.0,0.00019973,2]
[372606390,1752701474019,-168.95444441,0.00019973,2]
[372606391,1752701474029,-151.0,0.00019973,2]
[372606392,1752701474039,-151.0,0.00019973,2]
[372606393,1752701474050,-151.0,0.00019973,2]
[372606394,1752701474060,-151.0,0.00019973,2]
[372606395,1752701474070,-151.0,0.00019973,2]
[372606396,1752701474079,-151.0,0.00019973,2]